Cogmind - Beta 14 @@@ ROGUE MODE // 2025.03.21 @ 22:53:40 Player: SirusTheMadDJ Result: Destroyed by G-47 Trooper with Particle Gun Performance ------------- Evolutions (1) 500 Regions Visited (2) 400 Robots Destroyed (25) 125 Value Destroyed (584) 584 Prototype IDs (1) 20 Alien Tech Used (0) 0 Bonus (0) 0 TOTAL SCORE: 1629 Bonus ------- None Cogmind --------- Core Integrity 0/400 Matter 300/300 Energy 100/100 System Corruption 0% Temperature Cool (9) Movement Core (1350) Ox26 Location -9/Materials Parts ------- > --- POWER (1) -------- (None) > --- PROPULSION (4) --- (None) > --- UTILITY (2) ------ Huge Storage Unit Visual Processing Unit > --- WEAPON (2) ------- (None) > --- INVENTORY (25) --- Light Ion Engine Light Ion Engine Heat Sink Small Storage Unit Recalibrator Peak State ------------ > --- POWER ------------ Light Nuclear Core > --- PROPULSION ------- Aluminum Leg Aluminum Leg Aluminum Leg Aluminum Leg > --- UTILITY ---------- Huge Storage Unit Visual Processing Unit > --- WEAPON ----------- Medium Laser Advanced Beam Cannon > --- INVENTORY -------- Light Ion Engine Light Ion Engine Aluminum Leg Heat Sink Small Storage Unit Recalibrator Grenade Launcher Mining Laser [Rating: 15] Favorites ----------- Power Ion Engine Engine Ion Engine Power Core Light Nuclear Core Propulsion Aluminum Leg Leg Aluminum Leg Utility Visual Processing Unit Device Recalibrator Storage Huge Storage Unit Processor Visual Processing Unit Weapon Medium Laser Energy Gun Medium Laser Energy Cannon Advanced Beam Cannon Launcher Grenade Launcher Special Weapon Mining Laser Build | -11 -10 -9 ------- Run | Yrd Mat Mat Slots Evolved 2 | . . 2 Power . | . . . Propulsion 2 | . . 2 Utility . | . . . Weapon . | . . . Parts Attached 26 | 6 4 16 Power 3 | 1 . 2 Engine 1 | 1 . . Core 2 | . . 2 Reactor . | . . . Propulsion 7 | 2 . 5 Treads . | . . . Leg 7 | 2 . 5 Wheel . | . . . Hover . | . . . Flight . | . . . Utility 5 | 1 3 1 Device 1 | . 1 . Storage 3 | 1 1 1 Processor 1 | . 1 . Hackware . | . . . Protection . | . . . Artifact . | . . . Weapon 11 | 2 1 8 Energy Gun 4 | 2 . 2 Energy Cannon 1 | . . 1 Ballistic Gun . | . . . Ballistic Cannon . | . . . Launcher 4 | . 1 3 Special Weapon 2 | . . 2 Impact Weapon . | . . . Slashing Weapon . | . . . Piercing Weapon . | . . . Special Melee Weapon . | . . . Unidentified Prototypes 1 | . . 1 Parts Lost 13 | . 2 11 Power 2 | . 1 1 Propulsion 6 | . . 6 Utility . | . . . Weapon 5 | . 1 4 Highest Loss Streak 8 | . 1 8 To Critical Strikes . | . . . Average Slot Usage (%) 85 | . 86 85 Engine 3 | . 10 . Core 3 | . . 4 Leg 35 | . 28 39 Device 1 | . 3 . Storage 12 | . 14 11 Processor 7 | . 1 11 Energy Gun 14 | . 22 10 Launcher 6 | . 5 7 Peak Build Rating 15 | 6 10 15 Average Rating 8 | 4 6 9 On Entrance 4 | . 6 7 Naked Turns . | . . . Heaviest Build 90 | 14 16 90 Greatest Support 40 | 20 20 40 Greatest Overweight (x) 7 | 3 . 7 Average Overweight (x) . | . . 1 Largest Inventory Capacity 25 | 8 25 25 Average Capacity 18 | 7 8 24 Most Carried 8 | . 5 8 Average Carried 4 | . 2 5 Final Capacity 25 | 8 8 25 Final Carried 5 | . 5 5 Class Distribution -------------------- 69% | Mutant 30% | Scavenger-Mutant Dominant Class ---------------- Mutant | -10/Materials Scavenger-Mutant | -9/Materials Resources | -11 -10 -9 ----------- Run | Yrd Mat Mat Matter Collected 565 | 249 120 196 Remotely . | . . . Salvage Created 724 | . 474 250 Parts 42 | . 23 19 Haulers Intercepted 1 | . 1 . Recyclers Shooed 1 | . . 1 Parts Field Recycled . | . . . Retrieved Matter . | . . . Parts Self-Destructed . | . . . Prevented . | . . . Kills | -11 -10 -9 ------- Run | Yrd Mat Mat Combat Hostiles Destroyed 16 | . 10 6 Guns 7 | . 7 . AOE 8 | . 2 6 Classes Destroyed 9 | . 7 2 Worker 1 | . . 1 Builder 1 | . 1 . Hauler 1 | . 1 . Recycler 2 | . 1 1 Mechanic 1 | . 1 . Operator 1 | . . 1 Watcher 2 | . 2 . Swarmer 5 | . 3 2 Grunt 11 | . 7 4 Best Kill Streak 4 | . 4 4 Combat Bots Only 3 | . 3 3 Max Kills in Single Turn 2 | . 2 2 Gunslinging . | . . . Exploded 2 | . 1 2 Melee . | . . . Uniques/NPCs Destroyed . | . . . Combat | -11 -10 -9 -------- Run | Yrd Mat Mat Hostile Shots Fired 163 | . 65 98 Missed 48 | . 24 24 Damage Taken 1537 | . 425 1112 Core 508 | . 94 414 Absorbed by Shields . | . . . Regen/Repaired (Parts) 44 | . . 44 Core Remaining (%) 81 | 100 62 . Volleys Fired 66 | . 50 16 Largest 2 | . 2 2 Hottest 100 | . 90 100 Shots Fired 103 | . 81 22 Gun 83 | . 70 13 Cannon . | . . . Launcher 19 | . 11 8 Special 1 | . . 1 Kinetic . | . . . Thermal 50 | . 38 12 Explosive 19 | . 11 8 Electromagnetic 34 | . 32 2 Robot Hit Streak 7 | . 7 7 Robot Miss Streak 6 | . 3 6 Penetration Max . | . . . Secondary Targets 2 | . 2 . Max Gunslinging Chain 1 | . 1 . Shots Hit Robots 58 | . 48 10 Core Hits 48 | . 29 19 Critical Kills . | . . . Critical Parts Destroyed . | . . . Critical Strikes 2 | . 1 1 Burn 2 | . 1 1 Melee Attacks . | . . . Impact . | . . . Slashing . | . . . Piercing . | . . . Sneak Attacks . | . . . Combat Hostiles . | . . . Follow-up Attacks . | . . . Damage Inflicted 1569 | . 954 615 Guns 654 | . 573 81 Cannons . | . . . Explosions 892 | . 381 511 Melee . | . . . Ramming 23 | . . 23 Kinetic . | . . . Thermal 364 | . 301 63 Explosive 892 | . 381 511 Electromagnetic 290 | . 272 18 Impact . | . . . Slashing . | . . . Piercing . | . . . Highest Corruption . | . . . Average Corruption . | . . . Corruption Purged . | . . . Corruption Blocked . | . . . Overload Shots . | . . . Overflow Damage 22 | . . 22 Projectiles . | . . . Explosions 22 | . . 22 Melee . | . . . Knockbacks . | . . . Impact . | . . . Kinetic . | . . . Secondary . | . . . Self-Inflicted Damage 92 | . . 92 Shots 3 | . . 3 Rammed 2 | . . 2 Targets Rammed 9 | . . 9 Kicked 7 | . . 7 Crushed . | . . . Highest Temperature 385 | . 385 328 Average Temperature 121 | . 139 73 Received Heat Transfer 618 | . 189 429 Effects 3 | . 3 . Shutdowns 1 | . 1 . Energy Bleed 1 | . 1 . Interference 1 | . 1 . Siege Activations . | . . . Robots Corrupted 1 | . 1 . Combat Hostiles 1 | . 1 . Parts Fried . | . . . Impact Corruptions . | . . . Robots Melted . | . . . Combat Hostiles . | . . . Parts Melted 2 | . 2 . Heat Transferred 1221 | . 962 259 Parts Sabotaged . | . . . Parts Stolen . | . . . Parts Stripped . | . . . Power Chain Reactions . | . . . Alert | -11 -10 -9 ------- Run | Yrd Mat Mat Peak Influence 430 | . 430 305 Initial 181 | . . 181 Average 181 | . 197 188 Maximum Alert Level 2 | . 2 1 Low Security (%) 68 | 100 53 74 Level 1 30 | . 43 25 Level 2 . | . 2 . Level 3 . | . . . Level 4 . | . . . Level 5 . | . . . High Security . | . . . Max Security . | . . . Squads Dispatched 4 | . 2 2 Investigation . | . . . Extermination . | . . . Reinforcement 4 | . 2 2 Assault . | . . . Garrison . | . . . Intercept . | . . . Searches Triggered . | . . . Construction Impeded 1 | . . 1 Haulers Reinforced . | . . . Active Scanning Responses . | . . . Cargo Convoy Interrupts . | . . . Stealth | -11 -10 -9 --------- Run | Yrd Mat Mat Distress Signals 2 | . 2 . Communications Jammed . | . . . Distress Signals . | . . . Times Spotted 40 | . 21 19 Peak Tracking Total 6 | . 4 6 Tactical Retreats 3 | . 3 . Traps | -11 -10 -9 ------- Run | Yrd Mat Mat Traps Triggered . | . . . Indirectly . | . . . Trap Hack Attempts . | . . . Triggered . | . . . Disarmed . | . . . Reprogrammed . | . . . Reused . | . . . Traps Extracted . | . . . Installed . | . . . Triggered . | . . . Machines | -11 -10 -9 ---------- Run | Yrd Mat Mat Machines Disabled 4 | . 4 . Max in Single Turn 2 | . 2 . Machines Repaired . | . . . Machines Dismantled . | . . . Machines Sabotaged . | . . . Overloaded Fab Kills . | . . . Hacking | -11 -10 -9 --------- Run | Yrd Mat Mat Machines Accessed 1 | . . 1 Terminals . | . . . Fabricators . | . . . Repair Stations 1 | . . 1 Recycling Units . | . . . Scanalyzers . | . . . Garrison Access . | . . . Total Hacks 2 | . . 2 Successful 2 | . . 2 Failed . | . . . Catastrophic . | . . . Database Lockouts . | . . . Manual . | . . . Terminals . | . . . Fabricators . | . . . Repair Stations 2 | . . 2 Recycling Units . | . . . Scanalyzers . | . . . Garrison Access . | . . . Terminal Hacks . | . . . Fabricator Hacks . | . . . Repair Station Hacks 2 | . . 2 Scan Component 1 | . . 1 Repair 1 | . . 1 Recycling Unit Hacks . | . . . Scanalyzer . | . . . Garrison Access Hacks . | . . . Unauthorized Hacks . | . . . Terminals . | . . . Fabricators . | . . . Repair Stations . | . . . Recycling Units . | . . . Scanalyzers . | . . . Garrison Access . | . . . Data Cores Recovered . | . . . Used . | . . . Hacking Detections . | . . . Full Trace Events . | . . . Feedback Events . | . . . Feedback Blocked . | . . . Robot Schematics Acquired . | . . . Robots Built . | . . . Authchips . | . . . Time . | . . . Total Robot Build Rating . | . . . Part Schematics Acquired . | . . . Parts Built . | . . . Authchips . | . . . Time . | . . . Total Part Build Rating . | . . . Parts Repaired 1 | . . 1 Time 38 | . . 38 Parts Recycled . | . . . Recycled Matter . | . . . Retrieved Matter . | . . . Retrieved Components . | . . . Parts Scanalyzed . | . . . Part Schematics Acquired . | . . . Parts Damaged . | . . . Bothacking | -11 -10 -9 ------------ Run | Yrd Mat Mat Used RIF Installer . | . . . Robots Hacked . | . . . Non-combat . | . . . Combat . | . . . Robot Hacks Applied . | . . . Relay Couplers Released . | . . . Fabnet Peak Effective % . | . . . Robots Rewired . | . . . Allies Hacked . | . . . Hacks Repelled . | . . . Allies | -11 -10 -9 -------- Run | Yrd Mat Mat Total Allies . | . . . Largest Group . | . . . Highest-Rated Group . | . . . Highest-Rated Ally . | . . . Total Orders . | . . . Ally Attacks . | . . . Total Damage . | . . . Kills . | . . . Allies Corrupted . | . . . Allies Melted . | . . . Intel | -11 -10 -9 ------- Run | Yrd Mat Mat Robot Analysis Total . | . . . Derelict Logs Recovered . | . . . Drone Launches . | . . . Drone Recoveries . | . . . Exploration | -11 -10 -9 ------------- Run | Yrd Mat Mat Turns Passed 1021 | 54 348 619 Spaces Moved 368 | 39 165 164 Core 8 | 8 . . Treads . | . . . Legs 360 | 31 165 164 Wheels . | . . . Hover . | . . . Flight . | . . . Fastest Speed 50 | 50 120 120 Average Speed 180 | 118 120 256 Slowest Speed 610 | 200 120 610 Overloaded Moves . | . . . Propulsion Burnouts . | . . . Robots Hopped . | . . . Cave-ins Triggered . | . . . Exploration Rate (%) 17 | 3 34 16 Regions Visited 2 Branch Regions . Pre-discovered Areas . | . . . Known Exits Taken . | . . . Unknown Exits Taken 2 | 1 1 . Scrap Searched . | . . . Spaces Dug . | . . . Terrain Destroyed 107 | . 46 61 Melee . | . . . Projectile 1 | . . 1 AOE 106 | . 46 60 Terrain Rammed . | . . . Walls Destroyed . | . . . Machines Disabled . | . . . Actions | -11 -10 -9 --------- Run | Yrd Mat Mat Total 576 | 44 232 300 Wait 99 | . 9 90 Move 366 | 38 164 164 Hop . | . . . Pick Up 8 | . 4 4 Fast Attach 13 | 6 3 4 Attach 5 | . . 5 Detach 1 | . 1 . Swap 8 | . 1 7 Drop 1 | . . 1 Fire 66 | . 50 16 Melee . | . . . Ram 2 | . . 2 Kick 7 | . . 7 Crush . | . . . Escape Stasis . | . . . Rewire . | . . . Trap . | . . . Miscellaneous . | . . . Route ------- -11/Scrapyard -10/Materials (discovered 2 exits: *Mat x2) -9/Materials (discovered 1 exit: [*Sto]) History --------- Turn | Location | Event 28 | -11/Scrapyard | Discovered new exit (range 16) 55 | -11/Scrapyard | Entered Materials 308 | -10/Materials | Build established: Mutant 325 | -10/Materials | Discovered new exit (range 12) 378 | -10/Materials | Discovered new exit (range 9) 403 | -10/Materials | Entered another Materials area 403 | -9/Materials | Evolved 2 slots: Propulsion x2 522 | -9/Materials | Discovered new exit (range 18) 833 | -9/Materials | Repaired Lgt. Nuclear Core 973 | -9/Materials | Build established: Scavenger-Mutant 1013 | -9/Materials | Core integrity fell below 50% 1019 | -9/Materials | Core integrity fell below 20% 1022 | -9/Materials | Destroyed by G-47 Trooper with Particle Gun Last Messages --------------- Aluminum Leg destroyed. Kicked Y-45 Defender. K-01 Serf collects debris. Kicked Y-45 Defender. K-01 Serf collects debris. Lgt. Nuclear Core destroyed. Kicked Y-45 Defender out of the way. K-01 Serf collects debris. Critical hit (Burn: +37). Kicked Y-45 Defender out of the way. M-13 Machinist repairs Y-45 Defender. Aluminum Leg destroyed. R-06 Scavenger collects Aluminum Leg. Aluminum Leg destroyed. R-06 Scavenger collects Heat Sink. Slammed into Y-45 Defender. R-06 Scavenger collects Aluminum Leg. M-13 Machinist repairs R-06 Scavenger. Slammed into Y-45 Defender. M-13 Machinist repairs G-34 Mercenary. Map ----- +----------------------------------------------------+ | ??????????######?????# ########????????????????? | | ????????### #?????#* #???????????????????????? | | ??????### ##??###%= #???????????????????????? | | ####### ### ## #### #= #???????????????????????? | | # % % #???????????????????????? | | # #???????????????????????? | | # %% #???????????????????????? | | ##+################## #???????????????????????? | | ## # # #???????????????????????? | | """ ?# ###""" # #???????????????????????? | | """ ??#####"R # +???????????????????????? | | ? """???????#""" # # ??????????????????????? | | ? ????????# + # ?????????????????????? | | ??"?????????# """ # #?##????????????????????? | | ? ??????????# """ ## ##???????????????????????? | | ????????????# """ ## #????????????????????????? | | ????????????# ## #????????????????????????? | | ????????????########### ########?????????????????? | | ??????????????????????# #= #?????????????????? | | ??????????????????????# # /] #?????????????????? | | ??????????############# # /] #?????????????????? | | ??????????# T ## + ] #?????????????????? | | ??????????# *###[# #?????????????????? | | ?????????## /* %#* #?????????????????? | | ?????????# %####+########?????????????????? | | ?????????## =# g@ #???????????????????? | | ???????????? """"" # gggmY #???????????????????? | | ???????????? """"" # #???????????????????? | | ???????????? """"" # #???????????????????? | | ???????????? ###########???????????????????? | | ????????????#####/???????????????????????????????? | | ???????????????? ????????????????????????????????? | | ??????????????? ????????????????????????????????? | | ?????????????? ?????????????????????????????????? | | ?????????????###?????????????????????????????????? | | ?????????????????????????????????????????????????? | | ?????????????????????????????????????????????????? | | ?????????????????????????????????????????????????? | | ?????????????????????????????????????????????????? | | ?????????????????????????????????????????????????? | | ?????????????????????????????????????????????????? | | ?????????????????????????????????????????????????? | | ?????????????????????????????????????????????????? | | ?????????????????????????????????????????????????? | | ?????????????????????????????????????????????????? | | ?????????????????????????????????????????????????? | | ?????????????????????????????????????????????????? | | ?????????????????????????????????????????????????? | | ?????????????????????????????????????????????????? | | ?????????????????????????????????????????????????? | +----------------------------------------------------+ Best States ------------- Heat Dissipation 28 Energy Generation 14 Energy Capacity 250 Matter Stores 300 Matter Capacity 300 Sight Range 18 Terrain Scan Density 10 Evasion (%) 55 Item Schematics ----------------- None Robot Schematics ------------------ None Fabricated ------------ Nothing Alien Tech Used ----------------- None Achievements -------------- Power Corrupts Challenges ------------ None Game ------ Seed HardcellAccelerationLance Manual? 0 Play Time 00:12:35 Cumulative 4.9 hours Start 2025.03.21 @ 22:42:44 End 2025.03.21 @ 22:53:40 Sessions 1 Manual Loads 0 Difficulty Rogue Special Mode None Game No. 12 Rogue 12 Adventurer 0 Explorer 0 Win Type - Total 0 Types 0/0/0/0/0/0/0/0/0 Lore% 3 Gallery% 10 Achievement% 10 Wizard Run 0 Options --------- Layout 1 ASCII 0 Keyboard 0 Movement Mouse Keybinds 0 Fullscreen 1 Font 24/Smallcaps Map View 50x35 Zoom Use 0% Tactical HUD 0 Map Filters NONE Filters NONE Steam 1 RUN: f57deeb3-9305-4796-a225-0cd3777aedd4